{"text_format":"1","workbook":"xlsx","n_sheets":12,"sheets":["Reeks1","Reeks2","Reeks3","Reeks4","Reeks5","Reeks6","Kal.R1","Kal.R2","Kal.R3","Kal.R4","Kal.R5","Kal.R6"],"not_rendered":{"charts":0,"images":0,"macros":0,"external_links":0,"defined_names":1,"comments":0,"pivot_tables":0},"unopened":[],"bounds":{"document_bytes":16777216,"sheet_cells":100000,"rows_first":2000,"rows_last":500,"rows_between":2000,"halvings":0,"cell_chars":16384,"cell_head_chars":4096},"cells_cut":0,"cells_raw":0,"read":"whole","date_system":"1900"}

{"sheet":"Reeks1","index":0,"n_rows":32,"n_cols":28,"rows_kept":32,"cut":false,"hidden":false,"merged":[]}
[null,"2014 - 2015 CK"]
[]
[null,"SPELERS",1,null,2,null,3,null,4,null,5,null,6,null,7,null,8,null,9,null,10,null,11,null,12,null,"Pa.","Pt."]
[null,null,"W","Z","W","Z","W","Z","W","Z","W","Z","W","Z","W","Z","W","Z","W","Z","W","Z","W","Z","W","Z"]
[1,"Bashkim I.",null,null,3,3,2,1,0,3,1,3,1,2,3,3,1,1,3,2,2,2,2,3,null,null,{"$f":"COUNT(C5:Z5)","v":20},{"$f":"SUM(C5:Z5)","v":41}]
[2,"Berghs H.",1,1,null,null,1,1,1,3,1,1,3,1,1,2,1,1,2,1,1,1,1,1,null,null,20,26]
[3,"Dardha B.",3,2,3,3,null,null,3,3,2,1,2,2,1,2,1,3,1,1,2,1,2,3,null,null,20,41]
[4,"Delvaux E.",1,3,1,3,1,1,null,null,1,1,1,2,2,1,1,1,2,2,1,1,1,1,null,null,20,28]
[5,"Knors R.",1,3,3,3,3,2,3,3,null,null,3,1,3,3,2,1,3,3,1,2,3,3,null,null,20,49]
[6,"Michiels A.",2,3,3,1,2,2,2,3,3,1,null,null,3,3,1,1,3,2,2,1,3,2,null,null,20,43]
[7,"Robbé R.",1,1,2,3,2,3,3,2,1,1,1,1,null,null,1,1,2,1,1,1,3,3,null,null,20,34]
[8,"Schuermans R.",3,3,3,3,1,3,3,3,3,2,3,3,3,3,null,null,3,3,2,3,3,3,null,null,20,56]
[9,"Stryckers F.",2,1,3,2,3,3,2,2,1,1,2,1,3,2,1,1,null,null,1,1,3,3,null,null,20,38]
[10,"Talon A.",2,2,3,3,3,2,3,3,2,3,3,2,3,3,1,2,3,3,null,null,3,3,null,null,20,52]
[11,"Verachtert M.",1,2,3,3,1,2,3,3,1,1,2,1,1,1,1,1,1,1,1,1,null,null,null,null,20,31]
[12,"bye",null,null,null,null,null,null,null,null,null,null,null,null,null,null,null,null,null,null,null,null,null,null,null,null,0,0]
[]
[null,"REEKS 1",null,null,"Pa",null,"Pt"]
[1,"Schuermans R.",null,null,{"$f":"$AA$12","v":20},null,{"$f":"$AB$12","v":56}]
[2,"Talon A.",null,null,{"$f":"$AA$14","v":20},null,{"$f":"$AB$14","v":52}]
[3,"Knors R.",null,null,{"$f":"$AA$9","v":20},null,{"$f":"$AB$9","v":49}]
[4,"Michiels A.",null,null,{"$f":"$AA$10","v":20},null,{"$f":"$AB$10","v":43}]
[5,"Dardha B.",null,null,{"$f":"$AA$7","v":20},null,{"$f":"$AB$7","v":41}]
[6,"Bashkim I.",null,null,{"$f":"$AA$5","v":20},null,{"$f":"$AB$5","v":41}]
[7,"Stryckers F.",null,null,{"$f":"$AA$13","v":20},null,{"$f":"$AB$13","v":38}]
[8,"Robbé R.",null,null,{"$f":"$AA$11","v":20},null,{"$f":"$AB$11","v":34}]
[9,"Verachtert M.",null,null,{"$f":"$AA$15","v":20},null,{"$f":"$AB$15","v":31}]
[10,"Delvaux E.",null,null,{"$f":"$AA$8","v":20},null,{"$f":"$AB$8","v":28}]
[11,"Berghs H.",null,null,{"$f":"$AA$6","v":20},null,{"$f":"$AB$6","v":26}]
[12,"bye",null,null,{"$f":"$AA$16","v":0},null,{"$f":"$AB$16","v":0}]
[]
[{"$f":"SUM(E19:E30)","v":220},"aantal partijen"]

{"sheet":"Reeks2","index":1,"n_rows":32,"n_cols":28,"rows_kept":32,"cut":false,"hidden":false,"merged":[]}
[null,"2014 - 2015 CK"]
[]
[null,"SPELERS",1,null,2,null,3,null,4,null,5,null,6,null,7,null,8,null,9,null,10,null,11,null,12,null,"Pa.","Pt."]
[null,null,"W","Z","W","Z","W","Z","W","Z","W","Z","W","Z","W","Z","W","Z","W","Z","W","Z","W","Z","W","Z"]
[1,"bye",null,null,null,null,null,null,null,null,null,null,null,null,null,null,null,null,null,null,null,null,null,null,null,null,{"$f":"COUNT(C5:Z5)","v":0},{"$f":"SUM(C5:Z5)","v":0}]
[2,"Cop C.",null,null,null,null,2,3,0,1,1,1,2,3,1,1,1,1,2,2,3,1,2,2,2,1,20,32]
[3,"Crauwels F.",null,null,1,2,null,null,1,0,1,1,1,1,1,3,1,3,1,3,1,2,3,3,3,1,20,33]
[4,"Daenen S.",null,null,3,0,0,3,null,null,1,0,0,3,1,0,0,3,3,0,0,1,3,0,3,0,20,24]
[5,"Dardha D.",null,null,3,3,3,3,0,3,null,null,3,3,2,3,3,3,3,2,3,3,3,3,3,3,20,55]
[6,"Embrechts J.",null,null,1,2,3,3,1,0,1,1,null,null,1,1,3,3,3,1,1,1,3,2,2,2,20,35]
[7,"Geylen L.",null,null,3,3,1,3,0,3,1,2,3,3,null,null,3,2,1,2,1,2,2,2,2,3,20,42]
[8,"Mathé M.",null,null,3,3,1,3,1,0,1,1,1,1,2,1,null,null,1,1,3,1,1,1,1,3,20,30]
[9,"Meulenbergs J.",null,null,2,2,1,3,0,1,2,1,3,1,2,3,3,3,null,null,3,3,3,2,3,2,20,43]
[10,"Serruys R.",null,null,3,1,2,3,3,0,1,1,3,3,2,3,3,1,1,1,null,null,3,2,3,3,20,42]
[11,"Van Dingenen M.",null,null,2,2,1,1,0,1,1,1,2,1,2,2,3,3,2,1,2,1,null,null,2,1,20,31]
[12,"Verbert J.",null,null,3,2,3,1,0,1,1,1,2,2,1,2,1,3,2,1,1,1,3,2,null,null,20,33]
[]
[null,"REEKS 2",null,null,"Pa",null,"Pt"]
[1,"Dardha D.",null,null,{"$f":"$AA$9","v":20},null,{"$f":"$AB$9","v":55}]
[2,"Meulenbergs J.",null,null,{"$f":"$AA$13","v":20},null,{"$f":"$AB$13","v":43}]
[3,"Serruys R.",null,null,{"$f":"$AA$14","v":20},null,{"$f":"$AB$14","v":42}]
[4,"Geylen L.",null,null,{"$f":"$AA$11","v":20},null,{"$f":"$AB$11","v":42}]
[5,"Embrechts J.",null,null,{"$f":"$AA$10","v":20},null,{"$f":"$AB$10","v":35}]
[6,"Crauwels F.",null,null,{"$f":"$AA$7","v":20},null,{"$f":"$AB$7","v":33}]
[7,"Verbert J.",null,null,{"$f":"$AA$16","v":20},null,{"$f":"$AB$16","v":33}]
[8,"Cop C.",null,null,{"$f":"$AA$6","v":20},null,{"$f":"$AB$6","v":32}]
[9,"Van Dingenen M.",null,null,{"$f":"$AA$15","v":20},null,{"$f":"$AB$15","v":31}]
[10,"Mathé M.",null,null,{"$f":"$AA$12","v":20},null,{"$f":"$AB$12","v":30}]
[11,"Daenen S.",null,null,{"$f":"$AA$8","v":20},null,{"$f":"$AB$8","v":24}]
[12,"bye",null,null,{"$f":"$AA$5","v":0},null,{"$f":"$AB$5","v":0}]
[]
[{"$f":"SUM(E19:E30)","v":220},"aantal partijen"]

{"sheet":"Reeks3","index":2,"n_rows":32,"n_cols":28,"rows_kept":32,"cut":false,"hidden":false,"merged":[]}
[null,"2014 - 2015 CK"]
[]
[null,"SPELERS",1,null,2,null,3,null,4,null,5,null,6,null,7,null,8,null,9,null,10,null,11,null,12,null,"Pa.","Pt."]
[null,null,"W","Z","W","Z","W","Z","W","Z","W","Z","W","Z","W","Z","W","Z","W","Z","W","Z","W","Z","W","Z"]
[1,"Adriaense R.",null,null,2,2,1,1,2,2,1,2,0,1,3,1,0,1,1,2,3,3,2,1,null,null,{"$f":"COUNT(C5:Z5)","v":20},{"$f":"SUM(C5:Z5)","v":31}]
[2,"Bacskai F.",2,2,null,null,1,1,1,3,1,1,1,1,1,1,1,1,1,3,1,1,1,2,null,null,20,27]
[3,"De Cock S.",3,3,3,3,null,null,3,3,2,2,3,1,3,1,2,2,2,2,3,1,3,3,null,null,20,48]
[4,"De Groot J.",2,2,1,3,1,1,null,null,2,1,1,1,1,1,2,1,2,1,1,1,3,3,null,null,20,31]
[5,"Geerts H.",2,3,3,3,2,2,3,2,null,null,2,2,1,1,2,2,1,2,2,1,2,3,null,null,20,41]
[6,"Goddé M.",3,3,3,3,3,1,3,3,2,2,null,null,3,3,3,3,3,2,1,3,3,1,null,null,20,51]
[7,"Kuti K.",3,0,3,3,3,1,3,3,3,3,1,1,null,null,3,2,2,1,1,3,3,3,null,null,20,45]
[8,"Roofthoofd J.",3,3,3,3,2,2,3,2,2,2,1,1,2,1,null,null,3,3,3,2,3,2,null,null,20,46]
[9,"Van der Steen L.",2,3,1,3,2,2,3,2,2,3,2,1,3,2,1,1,null,null,3,1,1,2,null,null,20,40]
[10,"Van Laer J.",1,0,3,3,3,1,3,3,3,2,1,3,1,3,2,1,3,1,null,null,1,2,null,null,20,40]
[11,"Vermaere L.",3,2,2,3,1,1,1,1,1,2,3,1,1,1,2,1,2,3,2,3,null,null,null,null,20,36]
[12,"bye",null,null,null,null,null,null,null,null,null,null,null,null,null,null,null,null,null,null,null,null,null,null,null,null,0,0]
[]
[null,"REEKS 3",null,null,"Pa",null,"Pt"]
[1,"Goddé M.",null,null,{"$f":"$AA$10","v":20},null,{"$f":"$AB$10","v":51}]
[2,"De Cock S.",null,null,{"$f":"$AA$7","v":20},null,{"$f":"$AB$7","v":48}]
[3,"Roofthoofd J.",null,null,{"$f":"$AA$12","v":20},null,{"$f":"$AB$12","v":46}]
[4,"Kuti K.",null,null,{"$f":"$AA$11","v":20},null,{"$f":"$AB$11","v":45}]
[5,"Geerts H.",null,null,{"$f":"$AA$9","v":20},null,{"$f":"$AB$9","v":41}]
[6,"Van der Steen L.",null,null,{"$f":"$AA$13","v":20},null,{"$f":"$AB$13","v":40}]
[7,"Van Laer J.",null,null,{"$f":"$AA$14","v":20},null,{"$f":"$AB$14","v":40}]
[8,"Vermaere L.",null,null,{"$f":"$AA$15","v":20},null,{"$f":"$AB$15","v":36}]
[9,"Adriaense R.",null,null,{"$f":"$AA$5","v":20},null,{"$f":"$AB$5","v":31}]
[10,"De Groot J.",null,null,{"$f":"$AA$8","v":20},null,{"$f":"$AB$8","v":31}]
[11,"Bacskai F.",null,null,{"$f":"$AA$6","v":20},null,{"$f":"$AB$6","v":27}]
[12,"bye",null,null,{"$f":"$AA$16","v":0},null,{"$f":"$AB$16","v":0}]
[]
[{"$f":"SUM(E19:E30)","v":220},"aantal partijen"]

{"sheet":"Reeks4","index":3,"n_rows":32,"n_cols":28,"rows_kept":32,"cut":false,"hidden":false,"merged":[]}
[null,"2014 - 2015 CK"]
[]
[null,"SPELERS",1,null,2,null,3,null,4,null,5,null,6,null,7,null,8,null,9,null,10,null,11,null,12,null,"Pa.","Pt."]
[null,null,"W","Z","W","Z","W","Z","W","Z","W","Z","W","Z","W","Z","W","Z","W","Z","W","Z","W","Z","W","Z"]
[1,"Bruynseels R.",null,null,3,1,3,3,1,3,3,3,2,2,3,2,3,1,3,1,3,0,3,2,null,null,{"$f":"COUNT(C5:Z5)","v":20},{"$f":"SUM(C5:Z5)","v":45}]
[2,"De Jonghe J.",3,1,null,null,1,0,1,3,3,2,0,3,3,1,1,1,1,1,0,2,1,1,null,null,20,29]
[3,"Hofman F.",1,1,3,3,null,null,3,2,2,3,2,2,3,1,3,3,2,1,3,0,2,1,null,null,20,41]
[4,"Keynen L.",1,3,1,3,2,1,null,null,3,1,2,1,3,3,3,3,3,1,0,3,2,2,null,null,20,41]
[5,"Lemeire D.",1,1,2,1,1,2,3,1,null,null,1,1,3,3,1,3,1,2,2,0,3,3,null,null,20,35]
[6,"Lemmens L.",2,2,1,3,2,2,3,2,3,3,null,null,3,3,3,2,3,3,0,3,2,2,null,null,20,47]
[7,"Meeus J.",2,1,3,1,3,1,1,1,1,1,1,1,null,null,3,1,1,2,2,0,2,3,null,null,20,31]
[8,"Mertens F.",3,1,3,3,1,1,1,1,1,3,2,1,3,1,null,null,2,1,0,3,1,3,null,null,20,35]
[9,"Neefs J.",3,1,3,3,3,2,3,1,2,3,1,1,2,3,3,2,null,null,3,0,2,2,null,null,20,43]
[10,"Soetewey J.",0,1,2,0,0,1,1,0,0,2,1,0,0,2,1,0,0,1,null,null,0,2,null,null,20,14]
[11,"Wouters F.",2,1,3,3,3,2,2,2,1,1,2,2,1,2,1,3,2,2,2,0,null,null,null,null,20,37]
[12,"bye",null,null,null,null,null,null,null,null,null,null,null,null,null,null,null,null,null,null,null,null,null,null,null,null,0,0]
[]
[null,"REEKS 4",null,null,"Pa",null,"Pt"]
[1,"Lemmens L.",null,null,{"$f":"$AA$10","v":20},null,{"$f":"$AB$10","v":47}]
[2,"Bruynseels R.",null,null,{"$f":"$AA$5","v":20},null,{"$f":"$AB$5","v":45}]
[3,"Neefs J.",null,null,{"$f":"$AA$13","v":20},null,{"$f":"$AB$13","v":43}]
[4,"Hofman F.",null,null,{"$f":"$AA$7","v":20},null,{"$f":"$AB$7","v":41}]
[5,"Keynen L.",null,null,{"$f":"$AA$8","v":20},null,{"$f":"$AB$8","v":41}]
[6,"Wouters F.",null,null,{"$f":"$AA$15","v":20},null,{"$f":"$AB$15","v":37}]
[7,"Lemeire D.",null,null,{"$f":"$AA$9","v":20},null,{"$f":"$AB$9","v":35}]
[8,"Mertens F.",null,null,{"$f":"$AA$12","v":20},null,{"$f":"$AB$12","v":35}]
[9,"Meeus J.",null,null,{"$f":"$AA$11","v":20},null,{"$f":"$AB$11","v":31}]
[10,"De Jonghe J.",null,null,{"$f":"$AA$6","v":20},null,{"$f":"$AB$6","v":29}]
[11,"Soetewey J.",null,null,{"$f":"$AA$14","v":20},null,{"$f":"$AB$14","v":14}]
[12,"bye",null,null,{"$f":"$AA$16","v":0},null,{"$f":"$AB$16","v":0}]
[]
[{"$f":"SUM(E19:E30)","v":220},"aantal partijen"]

{"sheet":"Reeks5","index":4,"n_rows":32,"n_cols":28,"rows_kept":32,"cut":false,"hidden":false,"merged":[]}
[null,"2014 - 2015 CK"]
[]
[null,"SPELERS",1,null,2,null,3,null,4,null,5,null,6,null,7,null,8,null,9,null,10,null,null,null,null,null,"Pa.","Pt."]
[null,null,"W","Z","W","Z","W","Z","W","Z","W","Z","W","Z","W","Z","W","Z","W","Z","W","Z"]
[1,"Brants R.",null,null,1,2,1,1,1,2,3,2,3,3,3,3,3,3,1,1,1,3,null,null,null,null,{"$f":"COUNT(C5:Z5)","v":18},{"$f":"SUM(C5:Z5)","v":37}]
[2,"Daponte P.",2,3,null,null,2,1,2,1,3,2,3,3,3,3,2,1,1,1,3,1,null,null,null,null,18,37]
[3,"Goddé P.",3,3,3,2,null,null,3,1,3,3,3,3,3,2,3,1,3,2,1,3,null,null,null,null,18,45]
[4,"Hellemans R.",2,3,3,2,3,1,null,null,2,3,3,3,3,3,1,3,2,3,3,1,null,null,null,null,18,44]
[5,"Heyndrickx R.",2,1,2,1,1,1,1,2,null,null,3,3,1,1,3,1,1,1,1,1,null,null,null,null,18,27]
[6,"Lens L.",1,1,1,1,1,1,1,1,1,1,null,null,1,1,2,1,1,1,1,3,null,null,null,null,18,21]
[7,"Leys F.",1,1,1,1,2,1,1,1,3,3,3,3,null,null,1,3,3,3,3,1,null,null,null,null,18,35]
[8,"Meulemeester L.",1,1,3,2,3,1,1,3,3,1,3,2,1,3,null,null,3,1,3,3,null,null,null,null,18,38]
[9,"Pynaerts H.",3,3,3,3,2,1,1,2,3,3,3,3,1,1,3,1,null,null,3,1,null,null,null,null,18,40]
[10,"Van Dyck Y.",1,3,3,1,1,3,3,1,3,3,1,3,3,1,1,1,3,1,null,null,null,null,null,null,{"$f":"COUNT(C14:Z14)","v":18},36]
[]
[]
[]
[null,"REEKS 5",null,null,"Pa",null,"Pt"]
[1,"Goddé P.",null,null,{"$f":"$AA$7","v":18},null,{"$f":"$AB$7","v":45}]
[2,"Hellemans R.",null,null,{"$f":"$AA$8","v":18},null,{"$f":"$AB$8","v":44}]
[3,"Pynaerts H.",null,null,{"$f":"$AA$13","v":18},null,{"$f":"$AB$13","v":40}]
[4,"Meulemeester L.",null,null,{"$f":"$AA$12","v":18},null,{"$f":"$AB$12","v":38}]
[5,"Brants R.",null,null,{"$f":"$AA$5","v":18},null,{"$f":"$AB$5","v":37}]
[6,"Daponte P.",null,null,{"$f":"$AA$6","v":18},null,{"$f":"$AB$6","v":37}]
[7,"Van Dyck Y.",null,null,{"$f":"$AA$14","v":18},null,{"$f":"$AB$14","v":36}]
[8,"Leys F.",null,null,{"$f":"$AA$11","v":18},null,{"$f":"$AB$11","v":35}]
[9,"Heyndrickx R.",null,null,{"$f":"$AA$9","v":18},null,{"$f":"$AB$9","v":27}]
[10,"Lens L.",null,null,{"$f":"$AA$10","v":18},null,{"$f":"$AB$10","v":21}]
[]
[]
[]
[{"$f":"SUM(E19:E30)","v":180},"aantal partijen"]

{"sheet":"Reeks6","index":5,"n_rows":32,"n_cols":28,"rows_kept":32,"cut":false,"hidden":false,"merged":[]}
[null,"2014 - 2015 CK"]
[]
[null,"SPELERS",1,null,2,null,3,null,4,null,5,null,6,null,7,null,8,null,9,null,10,null,null,null,null,null,"Pa.","Pt."]
[null,null,"W","Z","W","Z","W","Z","W","Z","W","Z","W","Z","W","Z","W","Z","W","Z","W","Z"]
[1,"Ilegems J.",null,null,1,1,3,3,2,3,3,3,1,1,2,1,3,1,1,3,null,null,null,null,null,null,{"$f":"COUNT(C5:Z5)","v":16},{"$f":"SUM(C5:Z5)","v":32}]
[2,"Renders J.",3,3,null,null,3,1,2,3,1,1,1,1,3,2,3,3,2,1,null,null,null,null,null,null,16,33]
[3,"Roelants W.",1,1,3,1,null,null,1,1,1,1,1,1,1,0,1,1,1,1,null,null,null,null,null,null,16,17]
[4,"Ruts I.",1,2,1,2,3,3,null,null,3,3,1,1,3,2,1,3,1,1,null,null,null,null,null,null,16,31]
[5,"Ruts L.",1,1,3,3,3,3,1,1,null,null,1,1,1,3,1,3,3,3,null,null,null,null,null,null,16,32]
[6,"Schrevens S.",3,3,3,3,3,3,3,3,3,3,null,null,3,2,3,1,2,2,null,null,null,null,null,null,16,43]
[7,"Van Tendeloo R.",3,2,2,1,3,3,2,1,1,3,2,1,null,null,3,3,1,2,null,null,null,null,null,null,16,33]
[8,"Vervaeke P.",3,1,1,1,3,3,1,3,1,3,3,1,1,1,null,null,3,1,null,null,null,null,null,null,16,30]
[9,"Vingerhoets W.",1,3,3,2,3,3,3,3,1,1,2,2,2,3,3,1,null,null,null,null,null,null,null,null,16,36]
[10,"bye",null,null,null,null,null,null,null,null,null,null,null,null,null,null,null,null,null,null,null,null,null,null,null,null,{"$f":"COUNT(C14:Z14)","v":0},0]
[]
[]
[]
[null,"REEKS 6",null,null,"Pa",null,"Pt"]
[1,"Schrevens S.",null,null,{"$f":"$AA$10","v":16},null,{"$f":"$AB$10","v":43}]
[2,"Vingerhoets W.",null,null,{"$f":"$AA$13","v":16},null,{"$f":"$AB$13","v":36}]
[3,"Renders J.",null,null,{"$f":"$AA$6","v":16},null,{"$f":"$AB$6","v":33}]
[4,"Van Tendeloo R.",null,null,{"$f":"$AA$11","v":16},null,{"$f":"$AB$11","v":33}]
[5,"Ilegems J.",null,null,{"$f":"$AA$5","v":16},null,{"$f":"$AB$5","v":32}]
[6,"Ruts L.",null,null,{"$f":"$AA$9","v":16},null,{"$f":"$AB$9","v":32}]
[7,"Ruts I.",null,null,{"$f":"$AA$8","v":16},null,{"$f":"$AB$8","v":31}]
[8,"Vervaeke P.",null,null,{"$f":"$AA$12","v":16},null,{"$f":"$AB$12","v":30}]
[9,"Roelants W.",null,null,{"$f":"$AA$7","v":16},null,{"$f":"$AB$7","v":17}]
[10,"bye",null,null,{"$f":"$AA$14","v":0},null,{"$f":"$AB$14","v":0}]
[]
[]
[]
[{"$f":"SUM(E19:E30)","v":144},"aantal partijen"]

{"sheet":"Kal.R1","index":6,"n_rows":89,"n_cols":12,"rows_kept":89,"cut":false,"hidden":false,"merged":[]}
[null,"REEKS 1",null,"2014 - 2015 CK"]
[]
[null,"Ronde 1",null,"5/11/2014.",null,null,null,"Ronde 12",null,"25/02/2015."]
[1,"Bashkim I.",null,"Delvaux E.",0,3,null,"Delvaux E.",null,"Bashkim I.",1,3]
[2,"Berghs H.",null,"Schuermans R.",1,3,null,"Schuermans R.",null,"Berghs H.",3,1]
[3,"Dardha B.",null,"Talon A.",2,2,null,"Talon A.",null,"Dardha B.",3,1]
[4,"Knors R.",null,"Michiels A.",3,1,null,"Michiels A.",null,"Knors R.",3,1]
[5,"bye",null,"Stryckers F.",0,0,null,"Stryckers F.",null,"bye",0,0]
[6,"Robbé R.",null,"Verachtert M.",3,1,null,"Verachtert M.",null,"Robbé R.",1,3]
[null,null,null,null,null,null,null," "]
[null,"Ronde 2",null,"12/11/2014.",null,null,null,"Ronde 13",null,"11/03/2015."]
[1,"Delvaux E.",null,"Verachtert M.",1,3,null,"Verachtert M.",null,"Delvaux E.",3,1]
[2,"Stryckers F.",null,"Robbé R.",3,1,null,"Robbé R.",null,"Stryckers F.",2,2]
[3,"Michiels A.",null,"bye",0,0,null,"bye",null,"Michiels A.",0,0]
[4,"Talon A.",null,"Knors R.",2,2,null,"Knors R.",null,"Talon A.",1,3]
[5,"Schuermans R.",null,"Dardha B.",1,3,null,"Dardha B.",null,"Schuermans R.",1,3]
[6,"Bashkim I.",null,"Berghs H.",3,1,null,"Berghs H.",null,"Bashkim I.",1,3]
[]
[null,"Ronde 3",null,"19/11/2014.",null,null,null,"Ronde 14",null,"18/03/2015."]
[1,"Berghs H.",null,"Delvaux E.",1,3,null,"Delvaux E.",null,"Berghs H.",1,3]
[2,"Dardha B.",null,"Bashkim I.",3,1,null,"Bashkim I.",null,"Dardha B.",2,2]
[3,"Knors R.",null,"Schuermans R.",2,2,null,"Schuermans R.",null,"Knors R.",3,1]
[4,"bye",null,"Talon A.",0,0,null,"Talon A.",null,"bye",0,0]
[5,"Robbé R.",null,"Michiels A.",1,3,null,"Michiels A.",null,"Robbé R.",3,1]
[6,"Verachtert M.",null,"Stryckers F.",1,3,null,"Stryckers F.",null,"Verachtert M.",3,1]
[]
[null,"Ronde 4",null,"3/12/2014.",null,null,null,"Ronde 15",null,"25/03/2015."]
[1,"Delvaux E.",null,"Stryckers F.",2,2,null,"Stryckers F.",null,"Delvaux E.",2,2]
[2,"Michiels A.",null,"Verachtert M.",3,1,null,"Verachtert M.",null,"Michiels A.",2,2]
[3,"Talon A.",null,"Robbé R.",3,1,null,"Robbé R.",null,"Talon A.",1,3]
[4,"Schuermans R.",null,"bye",0,0,null,"bye",null,"Schuermans R.",0,0]
[5,"Bashkim I.",null,"Knors R.",1,3,null,"Knors R.",null,"Bashkim I.",1,3]
[6,"Berghs H.",null,"Dardha B.",1,3,null,"Dardha B.",null,"Berghs H.",3,1]
[]
[null,"Ronde 5",null,"10/12/2014.",null,null,null,"Ronde 16",null,"8/04/2015."]
[1,"Dardha B.",null,"Delvaux E.",3,1,null,"Delvaux E.",null,"Dardha B.",1,3]
[2,"Knors R.",null,"Berghs H.",3,1,null,"Berghs H.",null,"Knors R.",1,3]
[3,"bye",null,"Bashkim I.",0,0,null,"Bashkim I.",null,"bye",0,0]
[4,"Robbé R.",null,"Schuermans R.",1,3,null,"Schuermans R.",null,"Robbé R.",3,1]
[5,"Verachtert M.",null,"Talon A.",1,3,null,"Talon A.",null,"Verachtert M.",3,1]
[6,"Stryckers F.",null,"Michiels A.",2,2,null,"Michiels A.",null,"Stryckers F.",3,1]
[]
[null,"Ronde 6",null,"17/12/2014.",null,null,null,"Ronde 17",null,"15/04/2015."]
[1,"Delvaux E.",null,"Michiels A.",1,3,null,"Michiels A.",null,"Delvaux E.",2,2]
[2,"Talon A.",null,"Stryckers F.",3,1,null,"Stryckers F.",null,"Talon A.",1,3]
[3,"Schuermans R.",null,"Verachtert M.",3,1,null,"Verachtert M.",null,"Schuermans R.",1,3]
[4,"Bashkim I.",null,"Robbé R.",3,1,null,"Robbé R.",null,"Bashkim I.",1,3]
[5,"Berghs H.",null,"bye",0,0,null,"bye",null,"Berghs H.",0,0]
[6,"Dardha B.",null,"Knors R.",2,2,null,"Knors R.",null,"Dardha B.",3,1]
[]
[null,"Ronde 7",null,"14/01/2015.",null,null,null,"Ronde 18",null,"22/04/2015."]
[1,"Knors R.",null,"Delvaux E.",3,1,null,"Delvaux E.",null,"Knors R.",1,3]
[2,"bye",null,"Dardha B.",0,0,null,"Dardha B.",null,"bye",0,0]
[3,"Robbé R.",null,"Berghs H.",2,2,null,"Berghs H.",null,"Robbé R.",1,3]
[4,"Verachtert M.",null,"Bashkim I.",1,3,null,"Bashkim I.",null,"Verachtert M.",2,2]
[5,"Stryckers F.",null,"Schuermans R.",1,3,null,"Schuermans R.",null,"Stryckers F.",3,1]
[6,"Michiels A.",null,"Talon A.",2,2,null,"Talon A.",null,"Michiels A.",3,1]
[]
[null,"Ronde 8",null,"21/01/2015.",null,null,null,"Ronde 19",null,"6/05/2015."]
[1,"Delvaux E.",null,"Talon A.",1,3,null,"Talon A.",null,"Delvaux E.",3,1]
[2,"Schuermans R.",null,"Michiels A.",3,1,null,"Michiels A.",null,"Schuermans R.",1,3]
[3,"Bashkim I.",null,"Stryckers F.",3,1,null,"Stryckers F.",null,"Bashkim I.",2,2]
[4,"Berghs H.",null,"Verachtert M.",1,3,null,"Verachtert M.",null,"Berghs H.",3,1]
[5,"Dardha B.",null,"Robbé R.",1,3,null,"Robbé R.",null,"Dardha B.",2,2]
[6,"Knors R.",null,"bye",0,0,null,"bye",null,"Knors R.",0,0]
[]
[null,"Ronde 9",null,"28/01/2015.",null,null,null,"Ronde 20",null,"13/05/2015."]
[1,"bye",null,"Delvaux E.",0,0,null,"Delvaux E.",null,"bye",0,0]
[2,"Robbé R.",null,"Knors R.",1,3,null,"Knors R.",null,"Robbé R.",3,1]
[3,"Verachtert M.",null,"Dardha B.",1,3,null,"Dardha B.",null,"Verachtert M.",2,2]
[4,"Stryckers F.",null,"Berghs H.",3,1,null,"Berghs H.",null,"Stryckers F.",2,2]
[5,"Michiels A.",null,"Bashkim I.",2,2,null,"Bashkim I.",null,"Michiels A.",1,3]
[6,"Talon A.",null,"Schuermans R.",1,3,null,"Schuermans R.",null,"Talon A.",2,2]
[]
[null,"Ronde 10",null,"11/02/2015.",null,null,null,"Ronde 21",null,"20/05/2015."]
[1,"Delvaux E.",null,"Schuermans R.",1,3,null,"Schuermans R.",null,"Delvaux E.",3,1]
[2,"Bashkim I.",null,"Talon A.",2,2,null,"Talon A.",null,"Bashkim I.",2,2]
[3,"Berghs H.",null,"Michiels A.",3,1,null,"Michiels A.",null,"Berghs H.",3,1]
[4,"Dardha B.",null,"Stryckers F.",1,3,null,"Stryckers F.",null,"Dardha B.",3,1]
[5,"Knors R.",null,"Verachtert M.",3,1,null,"Verachtert M.",null,"Knors R.",1,3]
[6,"bye",null,"Robbé R.",0,0,null,"Robbé R.",null,"bye",0,0]
[]
[null,"Ronde 11",null,"18/02/2015.",null,null,null,"Ronde 22",null,"27/05/2015."]
[1,"Robbé R.",null,"Delvaux E.",3,1,null,"Delvaux E.",null,"Robbé R.",2,2]
[2,"Verachtert M.",null,"bye",0,0,null,"bye",null,"Verachtert M.",0,0]
[3,"Stryckers F.",null,"Knors R.",1,3,null,"Knors R.",null,"Stryckers F.",3,1]
[4,"Michiels A.",null,"Dardha B.",2,2,null,"Dardha B.",null,"Michiels A.",2,2]
[5,"Talon A.",null,"Berghs H.",3,1,null,"Berghs H.",null,"Talon A.",1,3]
[6,"Schuermans R.",null,"Bashkim I.",3,1,null,"Bashkim I.",null,"Schuermans R.",1,3]

{"sheet":"Kal.R2","index":7,"n_rows":89,"n_cols":12,"rows_kept":89,"cut":false,"hidden":false,"merged":[]}
[null,"REEKS 2",null,"2014 - 2015 CK"]
[]
[null,"Ronde 1",null,"5/11/2014.",null,null,null,"Ronde 12",null,"25/02/2015."]
[1,"bye",null,"Verbert J.",0,0,null,"Verbert J.",null,"bye",0,0]
[2,"Daenen S.",null,"Van Dingenen",3,1,null,"Van Dingenen",null,"Daenen S.",0,0]
[3,"Cop C.",null,"Serruys R.",3,1,null,"Serruys R.",null,"Cop C.",3,1]
[4,"Crauwels F.",null,"Meulenbergs J.",1,3,null,"Meulenbergs J.",null,"Crauwels F.",1,3]
[5,"Dardha D.",null,"Mathé M.",3,1,null,"Mathé M.",null,"Dardha D.",1,3]
[6,"Embrechts J.",null,"Geylen L.",1,3,null,"Geylen L.",null,"Embrechts J.",3,1]
[null,null,null,null,null,null,null," "]
[null,"Ronde 2",null,"12/11/2014.",null,null,null,"Ronde 13",null,"11/03/2015."]
[1,"Verbert J.",null,"Geylen L.",1,3,null,"Geylen L.",null,"Verbert J.",2,2]
[2,"Mathé M.",null,"Embrechts J.",1,3,null,"Embrechts J.",null,"Mathé M.",3,1]
[3,"Meulenbergs J.*",null,"Dardha D.",2,2,null,"Dardha D.",null,"Meulenbergs J.",3,1]
[4,"Serruys R.*",null,"Crauwels F.",2,2,null,"Crauwels F.",null,"Serruys R.",1,3]
[5,"Van Dingenen",null,"Cop C.*",2,2,null,"Cop C.",null,"Van Dingenen",2,2]
[6,"bye",null,"Daenen S.",0,0,null,"Daenen S.",null,"bye",0,0]
[]
[null,"Ronde 3",null,"19/11/2014.",null,null,null,"Ronde 14",null,"18/03/2015."]
[1,"Daenen S.",null,"Verbert J.",3,1,null,"Verbert J.",null,"Daenen S.",0,0]
[2,"Cop C.",null,"bye",0,0,null,"bye",null,"Cop C.",0,0]
[3,"Crauwels F.",null,"Van Dingenen",3,1,null,"Van Dingenen",null,"Crauwels F.",1,3]
[4,"Dardha D.",null,"Serruys R.",3,1,null,"Serruys R.",null,"Dardha D.",1,3]
[5,"Embrechts J.",null,"Meulenbergs J.",3,1,null,"Meulenbergs J.",null,"Embrechts J.",3,1]
[6,"Geylen L.",null,"Mathé M.",3,1,null,"Mathé M.",null,"Geylen L.",2,2]
[]
[null,"Ronde 4",null,"3/12/2014.",null,null,null,"Ronde 15",null,"25/03/2015."]
[1,"Verbert J.",null,"Mathé M.",1,3,null,"Mathé M.",null,"Verbert J.",1,3]
[2,"Meulenbergs J.",null,"Geylen L.",2,2,null,"Geylen L.",null,"Meulenbergs J.",1,3]
[3,"Serruys R.",null,"Embrechts J.",3,1,null,"Embrechts J.",null,"Serruys R.",1,3]
[4,"Van Dingenen",null,"Dardha D.",1,3,null,"Dardha D.",null,"Van Dingenen",3,1]
[5,"bye",null,"Crauwels F.",0,0,null,"Crauwels F.",null,"bye",0,0]
[6,"Daenen S.",null,"Cop C.",3,1,null,"Cop C.",null,"Daenen S.",0,0]
[]
[null,"Ronde 5",null,"10/12/2014.",null,null,null,"Ronde 16",null,"8/04/2015."]
[1,"Cop C.",null,"Verbert J.",2,2,null,"Verbert J.",null,"Cop C.",3,1]
[2,"Crauwels F.",null,"Daenen S.",1,3,null,"Daenen S.",null,"Crauwels F.",0,0]
[3,"Dardha D.",null,"bye",0,0,null,"bye",null,"Dardha D.",0,0]
[4,"Embrechts J.",null,"Van Dingenen",3,1,null,"Van Dingenen",null,"Embrechts J.",2,2]
[5,"Geylen L.",null,"Serruys R.",1,3,null,"Serruys R.",null,"Geylen L.",2,2]
[6,"Mathé M.",null,"Meulenbergs J.",1,3,null,"Meulenbergs J.",null,"Mathé M.",3,1]
[]
[null,"Ronde 6",null,"17/12/2014.",null,null,null,"Ronde 17",null,"15/04/2015."]
[1,"Verbert J.",null,"Meulenbergs J.",2,2,null,"Meulenbergs J.",null,"Verbert J.",3,1]
[2,"Serruys R.",null,"Mathé M.",3,1,null,"Mathé M.",null,"Serruys R.",3,1]
[3,"Van Dingenen",null,"Geylen L.",2,2,null,"Geylen L.",null,"Van Dingenen",2,2]
[4,"bye",null,"Embrechts J.",0,0,null,"Embrechts J.",null,"bye",0,0]
[5,"Daenen S.",null,"Dardha D.",1,3,null,"Dardha D.",null,"Daenen S.",0,0]
[6,"Cop C.",null,"Crauwels F.",2,2,null,"Crauwels F.",null,"Cop C.",1,3]
[]
[null,"Ronde 7",null,"14/01/2015.",null,null,null,"Ronde 18",null,"22/04/2015."]
[1,"Crauwels F.",null,"Verbert J.",3,1,null,"Verbert J.",null,"Crauwels F.",3,1]
[2,"Dardha D.",null,"Cop C.",3,1,null,"Cop C.",null,"Dardha D.",1,3]
[3,"Embrechts J.",null,"Daenen S.",1,3,null,"Daenen S.",null,"Embrechts J.",0,0]
[4,"Geylen L.",null,"bye",0,0,null,"bye",null,"Geylen L.",0,0]
[5,"Mathé M.",null,"Van Dingenen",1,3,null,"Van Dingenen",null,"Mathé M.",3,1]
[6,"Meulenbergs J.",null,"Serruys R.",3,1,null,"Serruys R.",null,"Meulenbergs J.",1,3]
[]
[null,"Ronde 8",null,"21/01/2015.",null,null,null,"Ronde 19",null,"6/05/2015."]
[1,"Verbert J.",null,"Serruys R.",1,3,null,"Serruys R.",null,"Verbert J.",3,1]
[2,"Van Dingenen",null,"Meulenbergs J.",2,2,null,"Meulenbergs J.",null,"Van Dingenen",3,1]
[3,"bye",null,"Mathé M.",0,0,null,"Mathé M.",null,"bye",0,0]
[4,"Daenen S.",null,"Geylen L.",1,3,null,"Geylen L.",null,"Daenen S.",0,0]
[5,"Cop C.",null,"Embrechts J.",2,2,null,"Embrechts J.",null,"Cop C.",1,3]
[6,"Crauwels F.",null,"Dardha D.",1,3,null,"Dardha D.",null,"Crauwels F.",3,1]
[]
[null,"Ronde 9",null,"28/01/2015.",null,null,null,"Ronde 20",null,"13/05/2015."]
[1,"Dardha D.",null,"Verbert J.",3,1,null,"Verbert J.",null,"Dardha D.",1,3]
[2,"Embrechts J.",null,"Crauwels F.",3,1,null,"Crauwels F.",null,"Embrechts J.",1,3]
[3,"Geylen L.",null,"Cop C.",3,1,null,"Cop C.",null,"Geylen L.",1,3]
[4,"Mathé M.",null,"Daenen S.",1,3,null,"Daenen S.",null,"Mathé M.",0,0]
[5,"Meulenbergs J.",null,"bye",0,0,null,"bye",null,"Meulenbergs J.",0,0]
[6,"Serruys R.",null,"Van Dingenen",3,1,null,"Van Dingenen",null,"Serruys R.",2,2]
[]
[null,"Ronde 10",null,"11/02/2015.",null,null,null,"Ronde 21",null,"20/05/2015."]
[1,"Verbert J.",null,"Van Dingenen",3,1,null,"Van Dingenen",null,"Verbert J.",2,2]
[2,"bye",null,"Serruys R.",0,0,null,"Serruys R.",null,"bye",0,0]
[3,"Daenen S.",null,"Meulenbergs J.",3,1,null,"Meulenbergs J.",null,"Daenen S.",0,0]
[4,"Cop C.",null,"Mathé M.",1,3,null,"Mathé M.",null,"Cop C.",3,1]
[5,"Crauwels F.",null,"Geylen L.",1,3,null,"Geylen L.",null,"Crauwels F.",1,3]
[6,"Dardha D.",null,"Embrechts J.",3,1,null,"Embrechts J.",null,"Dardha D.",1,3]
[]
[null,"Ronde 11",null,"18/02/2015.",null,null,null,"Ronde 22",null,"27/05/2015."]
[1,"Embrechts J.",null,"Verbert J.",2,2,null,"Verbert J.",null,"Embrechts J.",2,2]
[2,"Geylen L.",null,"Dardha D.",1,3,null,"Dardha D.",null,"Geylen L.",2,2]
[3,"Mathé M.",null,"Crauwels F.",1,3,null,"Crauwels F.",null,"Mathé M.",1,3]
[4,"Meulenbergs J.",null,"Cop C.",2,2,null,"Cop C.",null,"Meulenbergs J.",2,2]
[5,"Serruys R.",null,"Daenen S.",3,1,null,"Daenen S.",null,"Serruys R.",0,0]
[6,"Van Dingenen",null,"bye",0,0,null,"bye",null,"Van Dingenen",0,0]

{"sheet":"Kal.R3","index":8,"n_rows":89,"n_cols":12,"rows_kept":89,"cut":false,"hidden":false,"merged":[]}
[null,"REEKS 3",null,"2014 - 2015 CK"]
[]
[null,"Ronde 1",null,"5/11/2014.",null,null,null,"Ronde 12",null,"25/02/2015."]
[1,"Adriaense R.*",null,"Vermaere L.",2,2,null,"Vermaere L.",null,"Adriaense R.",3,1]
[2,"bye",null,"Van Laer J.",0,0,null,"Van Laer J.",null,"bye",0,0]
[3,"Bacskai F.",null,"Van der Steen",1,3,null,"Van der Steen",null,"Bacskai F.",1,3]
[4,"De Groot J.",null,"Roofthoofd J.",2,2,null,"Roofthoofd J.",null,"De Groot J.",3,1]
[5,"Geerts H.*",null,"De Cock S.",2,2,null,"De Cock S.",null,"Geerts H.",2,2]
[6,"Goddé M.",null,"Kuti K.",3,1,null,"Kuti K.",null,"Goddé M.",1,3]
[null,null,null,null,null,null,null," "]
[null,"Ronde 2",null,"12/11/2014.",null,null,null,"Ronde 13",null,"11/03/2015."]
[1,"Vermaere L.",null,"Kuti K.",1,3,null,"Kuti K.",null,"Vermaere L.",3,1]
[2,"De Cock S.",null,"Goddé M.",3,1,null,"Goddé M.",null,"De Cock S.",3,1]
[3,"Roofthoofd J.",null,"Geerts H.*",2,2,null,"Geerts H.",null,"Roofthoofd J.",2,2]
[4,"Van der Steen",null,"De Groot J.",3,1,null,"De Groot J.",null,"Van der Steen",2,2]
[5,"Van Laer J.",null,"Bacskai F.",3,1,null,"Bacskai F.",null,"Van Laer J.",1,3]
[6,"Adriaense R.",null,"bye",0,0,null,"bye",null,"Adriaense R.",0,0]
[]
[null,"Ronde 3",null,"19/11/2014.",null,null,null,"Ronde 14",null,"18/03/2015."]
[1,"bye",null,"Vermaere L.",0,0,null,"Vermaere L.",null,"bye",0,0]
[2,"Bacskai F.",null,"Adriaense R.",2,2,null,"Adriaense R.",null,"Bacskai F.",2,2]
[3,"De Groot J.",null,"Van Laer J.*",1,3,null,"Van Laer J.",null,"De Groot J.",3,1]
[4,"Geerts H.",null,"Van der Steen",1,3,null,"Van der Steen",null,"Geerts H.",2,2]
[5,"Goddé M.",null,"Roofthoofd J.",3,1,null,"Roofthoofd J.",null,"Goddé M.",1,3]
[6,"Kuti K.",null,"De Cock S.",3,1,null,"De Cock S.",null,"Kuti K.",3,1]
[]
[null,"Ronde 4",null,"3/12/2014.",null,null,null,"Ronde 15",null,"25/03/2015."]
[1,"Vermaere L.",null,"De Cock S.",1,3,null,"De Cock S.",null,"Vermaere L.",3,1]
[2,"Roofthoofd J.",null,"Kuti K.",2,2,null,"Kuti K.",null,"Roofthoofd J.",3,1]
[3,"Van der Steen",null,"Goddé M.",2,2,null,"Goddé M.",null,"Van der Steen",3,1]
[4,"Van Laer J.",null,"Geerts H.",3,1,null,"Geerts H.",null,"Van Laer J.",2,2]
[5,"Adriaense R.",null,"De Groot J.",2,2,null,"De Groot J.",null,"Adriaense R.",2,2]
[6,"bye",null,"Bacskai F.",0,0,null,"Bacskai F.",null,"bye",0,0]
[]
[null,"Ronde 5",null,"10/12/2014.",null,null,null,"Ronde 16",null,"8/04/2015."]
[1,"Bacskai F.",null,"Vermaere L.",1,3,null,"Vermaere L.",null,"Bacskai F.",2,2]
[2,"De Groot J.",null,"bye",0,0,null,"bye",null,"De Groot J.",0,0]
[3,"Geerts H.",null,"Adriaense R.",2,2,null,"Adriaense R.",null,"Geerts H.",1,3]
[4,"Goddé M.",null,"Van Laer J.",1,3,null,"Van Laer J.",null,"Goddé M.",1,3]
[5,"Kuti K.",null,"Van der Steen",2,2,null,"Van der Steen",null,"Kuti K.",3,1]
[6,"De Cock S.",null,"Roofthoofd J.",2,2,null,"Roofthoofd J.",null,"De Cock S.",2,2]
[]
[null,"Ronde 6",null,"17/12/2014.",null,null,null,"Ronde 17",null,"15/04/2015."]
[1,"Vermaere L.",null,"Roofthoofd J.",2,2,null,"Roofthoofd J.",null,"Vermaere L.",3,1]
[2,"Van der Steen",null,"De Cock S.",2,2,null,"De Cock S.",null,"Van der Steen",2,2]
[3,"Van Laer J.",null,"Kuti K.",1,3,null,"Kuti K.",null,"Van Laer J.",1,3]
[4,"Adriaense R.",null,"Goddé M.",0,3,null,"Goddé M.",null,"Adriaense R.",3,1]
[5,"bye",null,"Geerts H.",0,0,null,"Geerts H.",null,"bye",0,0]
[6,"Bacskai F.",null,"De Groot J.",1,3,null,"De Groot J.",null,"Bacskai F.",1,3]
[]
[null,"Ronde 7",null,"14/01/2015.",null,null,null,"Ronde 18",null,"22/04/2015."]
[1,"De Groot J.",null,"Vermaere L.",3,1,null,"Vermaere L.",null,"De Groot J.",1,3]
[2,"Geerts H.",null,"Bacskai F.",3,1,null,"Bacskai F.",null,"Geerts H.",1,3]
[3,"Goddé M.",null,"bye",0,0,null,"bye",null,"Goddé M.",0,0]
[4,"Kuti K.",null,"Adriaense R.",3,1,null,"Adriaense R.",null,"Kuti K.",3,0]
[5,"De Cock S.",null,"Van Laer J.",3,1,null,"Van Laer J.",null,"De Cock S.",3,1]
[6,"Roofthoofd J.",null,"Van der Steen",3,1,null,"Van der Steen",null,"Roofthoofd J.",1,3]
[]
[null,"Ronde 8",null,"21/01/2015.",null,null,null,"Ronde 19",null,"6/05/2015."]
[1,"Vermaere L.",null,"Van der Steen",2,2,null,"Van der Steen",null,"Vermaere L.",1,3]
[2,"Van Laer J.",null,"Roofthoofd J.",2,2,null,"Roofthoofd J.",null,"Van Laer J.",3,1]
[3,"Adriaense R.",null,"De Cock S.",1,3,null,"De Cock S.",null,"Adriaense R.",3,1]
[4,"bye",null,"Kuti K.",0,0,null,"Kuti K.",null,"bye",0,0]
[5,"Bacskai F.",null,"Goddé M.",1,3,null,"Goddé M.",null,"Bacskai F.",3,1]
[6,"De Groot J.",null,"Geerts H.",2,2,null,"Geerts H.",null,"De Groot J.",3,1]
[]
[null,"Ronde 9",null,"28/01/2015.",null,null,null,"Ronde 20",null,"13/05/2015."]
[1,"Geerts H.",null,"Vermaere L.",2,2,null,"Vermaere L.",null,"Geerts H.",1,3]
[2,"Goddé M.",null,"De Groot J.",3,1,null,"De Groot J.",null,"Goddé M.",1,3]
[3,"Kuti K.",null,"Bacskai F.",3,1,null,"Bacskai F.",null,"Kuti K.",1,3]
[4,"De Cock S.",null,"bye",0,0,null,"bye",null,"De Cock S.",0,0]
[5,"Roofthoofd J.",null,"Adriaense R.",3,1,null,"Adriaense R.",null,"Roofthoofd J.",0,3]
[6,"Van der Steen",null,"Van Laer J.",3,1,null,"Van Laer J.",null,"Van der Steen",3,1]
[]
[null,"Ronde 10",null,"11/02/2015.",null,null,null,"Ronde 21",null,"20/05/2015."]
[1,"Vermaere L.",null,"Van Laer J.",2,2,null,"Van Laer J.",null,"Vermaere L.",1,3]
[2,"Adriaense R.",null,"Van der Steen",1,3,null,"Van der Steen",null,"Adriaense R.",2,2]
[3,"bye",null,"Roofthoofd J.",0,0,null,"Roofthoofd J.",null,"bye",0,0]
[4,"Bacskai F.",null,"De Cock S.",1,3,null,"De Cock S.",null,"Bacskai F.",3,1]
[5,"De Groot J.",null,"Kuti K.",1,3,null,"Kuti K.",null,"De Groot J.",3,1]
[6,"Geerts H.",null,"Goddé M.",2,2,null,"Goddé M.",null,"Geerts H.",2,2]
[]
[null,"Ronde 11",null,"18/02/2015.",null,null,null,"Ronde 22",null,"27/05/2015."]
[1,"Goddé M.",null,"Vermaere L.",3,1,null,"Vermaere L.",null,"Goddé M.",3,1]
[2,"Kuti K.",null,"Geerts H.",3,1,null,"Geerts H.",null,"Kuti K.",1,3]
[3,"De Cock S.",null,"De Groot J.",3,1,null,"De Groot J.",null,"De Cock S.",1,3]
[4,"Roofthoofd J.",null,"Bacskai F.",3,1,null,"Bacskai F.",null,"Roofthoofd J.",1,3]
[5,"Van der Steen",null,"bye",0,0,null,"bye",null,"Van der Steen",0,0]
[6,"Van Laer J.",null,"Adriaense R.",1,3,null,"Adriaense R.",null,"Van Laer J.",3,0]

{"sheet":"Kal.R4","index":9,"n_rows":89,"n_cols":12,"rows_kept":89,"cut":false,"hidden":false,"merged":[]}
[null,"REEKS 4",null,"2014 - 2015 CK"]
[]
[null,"Ronde 1",null,"5/11/2014.",null,null,null,"Ronde 12",null,"25/02/2015."]
[1,"bye",null,"Wouters F.",0,0,null,"Wouters F.",null,"bye",0,0]
[2,"Bruynseels R.",null,"Soetewey J.",3,1,null,"Soetewey J.",null,"Bruynseels R.",0,0]
[3,"De Jonghe J.",null,"Neefs J.",1,3,null,"Neefs J.",null,"De Jonghe J.",3,1]
[4,"Hofman F.",null,"Mertens F.",3,1,null,"Mertens F.",null,"Hofman F.",1,3]
[5,"Keynen L.",null,"Meeus J.",3,1,null,"Meeus J.",null,"Keynen L.",1,3]
[6,"Lemeire D.",null,"Lemmens L.",1,3,null,"Lemmens L.",null,"Lemeire D.",3,1]
[null,null,null,null,null,null,null," "]
[null,"Ronde 2",null,"12/11/2014.",null,null,null,"Ronde 13",null,"11/03/2015."]
[1,"Wouters F.",null,"Lemmens L.",2,2,null,"Lemmens L.",null,"Wouters F.",2,2]
[2,"Meeus J.",null,"Lemeire D.",1,3,null,"Lemeire D.",null,"Meeus J.",3,1]
[3,"Mertens F.",null,"Keynen L.",1,3,null,"Keynen L.",null,"Mertens F.",3,1]
[4,"Neefs J.",null,"Hofman F.",3,1,null,"Hofman F.",null,"Neefs J.",2,2]
[5,"Soetewey J.",null,"De Jonghe J.",2,2,null,"De Jonghe J.",null,"Soetewey J.",0,0]
[6,"bye",null,"Bruynseels R.",0,0,null,"Bruynseels R.",null,"bye",0,0]
[]
[null,"Ronde 3",null,"19/11/2014.",null,null,null,"Ronde 14",null,"18/03/2015."]
[1,"Bruynseels R.",null,"Wouters F.",3,1,null,"Wouters F.",null,"Bruynseels R.",2,2]
[2,"De Jonghe J.",null,"bye",0,0,null,"bye",null,"De Jonghe J.",0,0]
[3,"Hofman F.",null,"Soetewey J.",3,1,null,"Soetewey J.",null,"Hofman F.",0,0]
[4,"Keynen L.",null,"Neefs J.",3,1,null,"Neefs J.",null,"Keynen L.",3,1]
[5,"Lemeire D.",null,"Mertens F.",1,3,null,"Mertens F.",null,"Lemeire D.",1,3]
[6,"Lemmens L.",null,"Meeus J.",3,1,null,"Meeus J.",null,"Lemmens L.",1,3]
[]
[null,"Ronde 4",null,"3/12/2014.",null,null,null,"Ronde 15",null,"25/03/2015."]
[1,"Wouters F.",null,"Meeus J.",1,3,null,"Meeus J.",null,"Wouters F.",2,2]
[2,"Mertens F.",null,"Lemmens L.",2,2,null,"Lemmens L.",null,"Mertens F.",3,1]
[3,"Neefs J.",null,"Lemeire D.",2,2,null,"Lemeire D.",null,"Neefs J.",1,3]
[4,"Soetewey J.",null,"Keynen L.",1,3,null,"Keynen L.",null,"Soetewey J.",0,0]
[5,"bye",null,"Hofman F.",0,0,null,"Hofman F.",null,"bye",0,0]
[6,"Bruynseels R.",null,"De Jonghe J.",3,1,null,"De Jonghe J.",null,"Bruynseels R.",3,1]
[]
[null,"Ronde 5",null,"10/12/2014.",null,null,null,"Ronde 16",null,"8/04/2015."]
[1,"De Jonghe J.",null,"Wouters F.",1,3,null,"Wouters F.",null,"De Jonghe J.",3,1]
[2,"Hofman F.",null,"Bruynseels R.",1,3,null,"Bruynseels R.",null,"Hofman F.",3,1]
[3,"Keynen L.",null,"bye",0,0,null,"bye",null,"Keynen L.",0,0]
[4,"Lemeire D.",null,"Soetewey J.",2,2,null,"Soetewey J.",null,"Lemeire D.",0,0]
[5,"Lemmens L.",null,"Neefs J.",3,1,null,"Neefs J.",null,"Lemmens L.",1,3]
[6,"Meeus J.",null,"Mertens F.",3,1,null,"Mertens F.",null,"Meeus J.",3,1]
[]
[null,"Ronde 6",null,"17/12/2014.",null,null,null,"Ronde 17",null,"15/04/2015."]
[1,"Wouters F.",null,"Mertens F.",1,3,null,"Mertens F.",null,"Wouters F.",1,3]
[2,"Neefs J.",null,"Meeus J.",2,2,null,"Meeus J.",null,"Neefs J.",1,3]
[3,"Soetewey J.",null,"Lemmens L.",1,3,null,"Lemmens L.",null,"Soetewey J.",0,0]
[4,"bye",null,"Lemeire D.",0,0,null,"Lemeire D.",null,"bye",0,0]
[5,"Bruynseels R.",null,"Keynen L.",1,3,null,"Keynen L.",null,"Bruynseels R.",1,3]
[6,"De Jonghe J.",null,"Hofman F.",1,3,null,"Hofman F.",null,"De Jonghe J.",3,0]
[]
[null,"Ronde 7",null,"14/01/2015.",null,null,null,"Ronde 18",null,"22/04/2015."]
[1,"Hofman F.",null,"Wouters F.",2,2,null,"Wouters F.",null,"Hofman F.",3,1]
[2,"Keynen L.",null,"De Jonghe J.",1,3,null,"De Jonghe J.",null,"Keynen L.",1,3]
[3,"Lemeire D.",null,"Bruynseels R.",1,3,null,"Bruynseels R.",null,"Lemeire D.",3,1]
[4,"Lemmens L.",null,"bye",0,0,null,"bye",null,"Lemmens L.",0,0]
[5,"Meeus J.",null,"Soetewey J.",2,2,null,"Soetewey J.",null,"Meeus J.",0,0]
[6,"Mertens F.",null,"Neefs J.",2,2,null,"Neefs J.",null,"Mertens F.",3,1]
[]
[null,"Ronde 8",null,"21/01/2015.",null,null,null,"Ronde 19",null,"6/05/2015."]
[1,"Wouters F.",null,"Neefs J.",2,2,null,"Neefs J.",null,"Wouters F.",2,2]
[2,"Soetewey J.",null,"Mertens F.",1,3,null,"Mertens F.",null,"Soetewey J.",0,0]
[3,"bye",null,"Meeus J.",0,0,null,"Meeus J.",null,"bye",0,0]
[4,"Bruynseels R.",null,"Lemmens L.",2,2,null,"Lemmens L.",null,"Bruynseels R.",2,2]
[5,"De Jonghe J.",null,"Lemeire D.",3,1,null,"Lemeire D.",null,"De Jonghe J.",2,2]
[6,"Hofman F.",null,"Keynen L.",3,1,null,"Keynen L.",null,"Hofman F.",2,2]
[]
[null,"Ronde 9",null,"28/01/2015.",null,null,null,"Ronde 20",null,"13/05/2015."]
[1,"Keynen L.",null,"Wouters F.",2,2,null,"Wouters F.",null,"Keynen L.",2,2]
[2,"Lemeire D.",null,"Hofman F.",1,3,null,"Hofman F.",null,"Lemeire D.",2,2]
[3,"Lemmens L.",null,"De Jonghe J.",1,3,null,"De Jonghe J.",null,"Lemmens L.",0,3]
[4,"Meeus J.",null,"Bruynseels R.",2,2,null,"Bruynseels R.",null,"Meeus J.",3,1]
[5,"Mertens F.",null,"bye",0,0,null,"bye",null,"Mertens F.",0,0]
[6,"Neefs J.",null,"Soetewey J.",3,1,null,"Soetewey J.",null,"Neefs J.",0,0]
[]
[null,"Ronde 10",null,"11/02/2015.",null,null,null,"Ronde 21",null,"20/05/2015."]
[1,"Wouters F.",null,"Soetewey J.",2,2,null,"Soetewey J.",null,"Wouters F.",0,0]
[2,"bye",null,"Neefs J.",0,0,null,"Neefs J.",null,"bye",0,0]
[3,"Bruynseels R.",null,"Mertens F.",3,1,null,"Mertens F.",null,"Bruynseels R.",3,1]
[4,"De Jonghe J.",null,"Meeus J.",3,1,null,"Meeus J.",null,"De Jonghe J.",3,1]
[5,"Hofman F.",null,"Lemmens L.",2,2,null,"Lemmens L.",null,"Hofman F.",2,2]
[6,"Keynen L.",null,"Lemeire D.",3,1,null,"Lemeire D.",null,"Keynen L.",3,1]
[]
[null,"Ronde 11",null,"18/02/2015.",null,null,null,"Ronde 22",null,"27/05/2015."]
[1,"Lemeire D.",null,"Wouters F.",3,1,null,"Wouters F.",null,"Lemeire D.",1,3]
[2,"Lemmens L.",null,"Keynen L.",3,1,null,"Keynen L.",null,"Lemmens L.",2,2]
[3,"Meeus J.",null,"Hofman F.",3,1,null,"Hofman F.",null,"Meeus J.",3,1]
[4,"Mertens F.",null,"De Jonghe J.",3,1,null,"De Jonghe J.",null,"Mertens F.",1,3]
[5,"Neefs J.",null,"Bruynseels R.",3,1,null,"Bruynseels R.",null,"Neefs J.",3,1]
[6,"Soetewey J.",null,"bye",0,0,null,"bye",null,"Soetewey J.",0,0]

{"sheet":"Kal.R5","index":10,"n_rows":72,"n_cols":12,"rows_kept":72,"cut":false,"hidden":false,"merged":[]}
[null,"REEKS 5",null,"2014 - 2015 CK"]
[]
[null,"Ronde 1",null,"5/11/2014.",null,null,null,"Ronde 10",null,"11/02/2015."]
[1,"Brants R.",null,"Lens L.",3,1,null,"Lens L.",null,"Brants R.",1,3]
[2,"Daponte P.",null,"Leys F.*",3,1,null,"Leys F.",null,"Daponte P.",1,3]
[3,"Goddé P.",null,"Meulemeester",3,1,null,"Meulemeester",null,"Goddé P.",3,1]
[4,"Hellemans R.",null,"Pynaerts H.",2,2,null,"Pynaerts H.",null,"Hellemans R.",1,3]
[5,"Heyndrickx R.",null,"Van Dyck Y.",1,3,null,"Van Dyck Y.",null,"Heyndrickx R.",3,1]
[]
[null,null,null,null,null,null,null," "]
[null,"Ronde 2",null,"12/11/2014.",null,null,null,"Ronde 11",null,"18/02/2015."]
[1,"Lens L.",null,"Van Dyck Y.",1,3,null,"Van Dyck Y.",null,"Lens L.",1,3]
[2,"Pynaerts H.",null,"Heyndrickx R.",3,1,null,"Heyndrickx R.",null,"Pynaerts H.",1,3]
[3,"Meulemeester",null,"Hellemans R.",1,3,null,"Hellemans R.",null,"Meulemeester",1,3]
[4,"Leys F.",null,"Goddé P.",2,2,null,"Goddé P.",null,"Leys F.",3,1]
[5,"Brants R.",null,"Daponte P.",1,3,null,"Daponte P.",null,"Brants R.",2,2]
[]
[]
[null,"Ronde 3",null,"19/11/2014.",null,null,null,"Ronde 12",null,"25/02/2015."]
[1,"Daponte P.",null,"Lens L.",3,1,null,"Lens L.",null,"Daponte P.",1,3]
[2,"Goddé P.",null,"Brants R.",3,1,null,"Brants R.",null,"Goddé P.",1,3]
[3,"Hellemans R.",null,"Leys F.",3,1,null,"Leys F.",null,"Hellemans R.",1,3]
[4,"Heyndrickx R.",null,"Meulemeester",3,1,null,"Meulemeester",null,"Heyndrickx R.",3,1]
[5,"Van Dyck Y.",null,"Pynaerts H.",3,1,null,"Pynaerts H.",null,"Van Dyck Y.",3,1]
[]
[]
[null,"Ronde 4",null,"3/12/2014.",null,null,null,"Ronde 13",null,"11/03/2015."]
[1,"Lens L.",null,"Pynaerts H.",1,3,null,"Pynaerts H.",null,"Lens L.",3,1]
[2,"Meulemeester",null,"Van Dyck Y.",3,1,null,"Van Dyck Y.",null,"Meulemeester",1,3]
[3,"Leys F.",null,"Heyndrickx R.",3,1,null,"Heyndrickx R.",null,"Leys F.",1,3]
[4,"Brants R.",null,"Hellemans R.",1,3,null,"Hellemans R.",null,"Brants R.",2,2]
[5,"Daponte P.",null,"Goddé P.",2,2,null,"Goddé P.",null,"Daponte P.",3,1]
[]
[]
[null,"Ronde 5",null,"10/12/2014.",null,null,null,"Ronde 14",null,"18/03/2015."]
[1,"Goddé P.",null,"Lens L.",3,1,null,"Lens L.",null,"Goddé P.",1,3]
[2,"Hellemans R.",null,"Daponte P.",3,1,null,"Daponte P.",null,"Hellemans R.",2,2]
[3,"Heyndrickx R.",null,"Brants R.",2,2,null,"Brants R.",null,"Heyndrickx R.",3,1]
[4,"Van Dyck Y.",null,"Leys F.",3,1,null,"Leys F.",null,"Van Dyck Y.",3,1]
[5,"Pynaerts H.",null,"Meulemeester",3,1,null,"Meulemeester",null,"Pynaerts H.",3,1]
[]
[]
[null,"Ronde 6",null,"17/12/2014.",null,null,null,"Ronde 15",null,"25/03/2015."]
[1,"Lens L.",null,"Meulemeester",2,2,null,"Meulemeester",null,"Lens L.",3,1]
[2,"Leys F.",null,"Pynaerts H.",3,1,null,"Pynaerts H.",null,"Leys F.",1,3]
[3,"Brants R.",null,"Van Dyck Y.",1,3,null,"Van Dyck Y.",null,"Brants R.",1,3]
[4,"Daponte P.",null,"Heyndrickx R.",3,1,null,"Heyndrickx R.",null,"Daponte P.",2,2]
[5,"Goddé P.",null,"Hellemans R.",3,1,null,"Hellemans R.",null,"Goddé P.",3,1]
[]
[]
[null,"Ronde 7",null,"14/01/2015.",null,null,null,"Ronde 16",null,"8/04/2015."]
[1,"Hellemans R.",null,"Lens L.",3,1,null,"Lens L.",null,"Hellemans R.",1,3]
[2,"Heyndrickx R.",null,"Goddé P.",1,3,null,"Goddé P.",null,"Heyndrickx R.",3,1]
[3,"Van Dyck Y.",null,"Daponte P.",3,1,null,"Daponte P.",null,"Van Dyck Y.",3,1]
[4,"Pynaerts H.",null,"Brants R.",3,1,null,"Brants R.",null,"Pynaerts H.",1,3]
[5,"Meulemeester",null,"Leys F.",1,3,null,"Leys F.",null,"Meulemeester",1,3]
[]
[]
[null,"Ronde 8",null,"21/01/2015.",null,null,null,"Ronde 17",null,"15/04/2015."]
[1,"Lens L.",null,"Leys F.",1,3,null,"Leys F.",null,"Lens L.",3,1]
[2,"Brants R.",null,"Meulemeester",3,1,null,"Meulemeester",null,"Brants R.",1,3]
[3,"Daponte P.",null,"Pynaerts H.",1,3,null,"Pynaerts H.",null,"Daponte P.",3,1]
[4,"Goddé P.",null,"Van Dyck Y.",1,3,null,"Van Dyck Y.",null,"Goddé P.",1,3]
[5,"Hellemans R.",null,"Heyndrickx R.",2,2,null,"Heyndrickx R.",null,"Hellemans R.",1,3]
[]
[]
[null,"Ronde 9",null,"28/01/2015.",null,null,null,"Ronde 18",null,"22/04/2015."]
[1,"Heyndrickx R.",null,"Lens L.",3,1,null,"Lens L.",null,"Heyndrickx R.",1,3]
[2,"Van Dyck Y.",null,"Hellemans R.",3,1,null,"Hellemans R.",null,"Van Dyck Y.",3,1]
[3,"Pynaerts H.",null,"Goddé P.",2,2,null,"Goddé P.",null,"Pynaerts H.",3,1]
[4,"Meulemeester",null,"Daponte P.",3,1,null,"Daponte P.",null,"Meulemeester",2,2]
[5,"Leys F.",null,"Brants R.",1,3,null,"Brants R.",null,"Leys F.",3,1]

{"sheet":"Kal.R6","index":11,"n_rows":72,"n_cols":12,"rows_kept":72,"cut":false,"hidden":false,"merged":[]}
[null,"REEKS 6",null,"2014 - 2015 CK"]
[]
[null,"Ronde 1",null,"5/11/2014.",null,null,null,"Ronde 10",null,"11/02/2015."]
[1,"Ilegems J.",null,"Schrevens S.",1,3,null,"Schrevens S.",null,"Ilegems J.",3,1]
[2,"Renders J.",null,"Van Tendeloo",3,1,null,"Van Tendeloo",null,"Renders J.",2,2]
[3,"Roelants W.*",null,"Vervaeke P.",1,3,null,"Vervaeke P.",null,"Roelants W.",3,1]
[4,"Ruts I.",null,"Vingerhoets W.",1,3,null,"Vingerhoets W.",null,"Ruts I.",3,1]
[5,"Ruts L.",null,"bye",0,0,null,"bye",null,"Ruts L.",0,0]
[]
[null,null,null,null,null,null,null," "]
[null,"Ronde 2",null,"12/11/2014.",null,null,null,"Ronde 11",null,"18/02/2015."]
[1,"Schrevens S.",null,"bye",0,0,null,"bye",null,"Schrevens S.",0,0]
[2,"Vingerhoets W.",null,"Ruts L.",1,3,null,"Ruts L.",null,"Vingerhoets W.",3,1]
[3,"Vervaeke P.",null,"Ruts I.",1,3,null,"Ruts I.",null,"Vervaeke P.",1,3]
[4,"Van Tendeloo",null,"Roelants W.",3,0,null,"Roelants W.",null,"Van Tendeloo",1,3]
[5,"Ilegems J.",null,"Renders J.",1,3,null,"Renders J.",null,"Ilegems J.",3,1]
[]
[]
[null,"Ronde 3",null,"19/11/2014.",null,null,null,"Ronde 12",null,"25/02/2015."]
[1,"Renders J.",null,"Schrevens S.",1,3,null,"Schrevens S.",null,"Renders J.",3,1]
[2,"Roelants W.",null,"Ilegems J.",1,3,null,"Ilegems J.",null,"Roelants W.",3,1]
[3,"Ruts I.",null,"Van Tendeloo",3,1,null,"Van Tendeloo",null,"Ruts I.",2,2]
[4,"Ruts L.",null,"Vervaeke P.",1,3,null,"Vervaeke P.",null,"Ruts L.",1,3]
[5,"bye",null,"Vingerhoets W.",0,0,null,"Vingerhoets W.",null,"bye",0,0]
[]
[]
[null,"Ronde 4",null,"3/12/2014.",null,null,null,"Ronde 13",null,"11/03/2015."]
[1,"Schrevens S.",null,"Vingerhoets W.",2,2,null,"Vingerhoets W.",null,"Schrevens S.",2,2]
[2,"Vervaeke P.",null,"bye",0,0,null,"bye",null,"Vervaeke P.",0,0]
[3,"Van Tendeloo",null,"Ruts L.",1,3,null,"Ruts L.",null,"Van Tendeloo",1,3]
[4,"Ilegems J.",null,"Ruts I.",2,2,null,"Ruts I.",null,"Ilegems J.",1,3]
[5,"Renders J.",null,"Roelants W.",3,1,null,"Roelants W.",null,"Renders J.",3,1]
[]
[]
[null,"Ronde 5",null,"10/12/2014.",null,null,null,"Ronde 14",null,"18/03/2015."]
[1,"Roelants W.",null,"Schrevens S.",1,3,null,"Schrevens S.",null,"Roelants W.",3,1]
[2,"Ruts I.",null,"Renders J.",1,3,null,"Renders J.",null,"Ruts I.",2,2]
[3,"Ruts L.",null,"Ilegems J.",1,3,null,"Ilegems J.",null,"Ruts L.",3,1]
[4,"bye",null,"Van Tendeloo",0,0,null,"Van Tendeloo",null,"bye",0,0]
[5,"Vingerhoets W.",null,"Vervaeke P.",3,1,null,"Vervaeke P.",null,"Vingerhoets W.",3,1]
[]
[]
[null,"Ronde 6",null,"17/12/2014.",null,null,null,"Ronde 15",null,"25/03/2015."]
[1,"Schrevens S.",null,"Vervaeke P.",3,1,null,"Vervaeke P.",null,"Schrevens S.",3,1]
[2,"Van Tendeloo",null,"Vingerhoets W.",1,3,null,"Vingerhoets W.",null,"Van Tendeloo",2,2]
[3,"Ilegems J.",null,"bye",0,0,null,"bye",null,"Ilegems J.",0,0]
[4,"Renders J.",null,"Ruts L.",1,3,null,"Ruts L.",null,"Renders J.",3,1]
[5,"Roelants W.",null,"Ruts I.",1,3,null,"Ruts I.",null,"Roelants W.",3,1]
[]
[]
[null,"Ronde 7",null,"14/01/2015.",null,null,null,"Ronde 16",null,"8/04/2015."]
[1,"Ruts I.",null,"Schrevens S.",1,3,null,"Schrevens S.",null,"Ruts I.",3,1]
[2,"Ruts L.",null,"Roelants W.",3,1,null,"Roelants W.",null,"Ruts L.",1,3]
[3,"bye",null,"Renders J.",0,0,null,"Renders J.",null,"bye",0,0]
[4,"Vingerhoets W.",null,"Ilegems J.",1,3,null,"Ilegems J.",null,"Vingerhoets W.",1,3]
[5,"Vervaeke P.",null,"Van Tendeloo",1,3,null,"Van Tendeloo",null,"Vervaeke P.",3,1]
[]
[]
[null,"Ronde 8",null,"21/01/2015.",null,null,null,"Ronde 17",null,"15/04/2015."]
[1,"Schrevens S.",null,"Van Tendeloo",3,1,null,"Van Tendeloo",null,"Schrevens S.",2,2]
[2,"Ilegems J.",null,"Vervaeke P.",3,1,null,"Vervaeke P.",null,"Ilegems J.",3,1]
[3,"Renders J.",null,"Vingerhoets W.",2,2,null,"Vingerhoets W.",null,"Renders J.",3,1]
[4,"Roelants W.",null,"bye",0,0,null,"bye",null,"Roelants W.",0,0]
[5,"Ruts I.",null,"Ruts L.",3,1,null,"Ruts L.",null,"Ruts I.",1,3]
[]
[]
[null,"Ronde 9",null,"28/01/2015.",null,null,null,"Ronde 18",null,"22/04/2015."]
[1,"Ruts L.",null,"Schrevens S.",1,3,null,"Schrevens S.",null,"Ruts L.",3,1]
[2,"bye",null,"Ruts I.",0,0,null,"Ruts I.",null,"bye",0,0]
[3,"Vingerhoets W.",null,"Roelants W.",3,1,null,"Roelants W.",null,"Vingerhoets W.",1,3]
[4,"Vervaeke P.",null,"Renders J.",1,3,null,"Renders J.",null,"Vervaeke P.",3,1]
[5,"Van Tendeloo",null,"Ilegems J.",3,1,null,"Ilegems J.",null,"Van Tendeloo",2,2]